fUST/lending_fUST_20240813
["ID","MTS","AMOUNT","RATE_DAILY","PERIOD"]
[334704958,1723489844057,-500.0,0.0001519,2]
[334704959,1723489844067,-507.87468215,0.0001519,2]
[334704960,1723489844079,-500.0,0.0001519,2]
[334704961,1723489844090,-500.0,0.0001519,2]
[334704962,1723489844100,-500.0,0.0001519,2]
[334704963,1723489844110,-2091.52,0.0001519,2]
[334704964,1723489844119,-500.0,0.0001519,2]
[334704965,1723489844129,-323.33109887,0.0001519,2]
[334704966,1723489844138,-500.0,0.0001519,2]
[334704968,1723489844147,-401.64744829,0.0001519,2]
[334704970,1723489844156,-543.08,0.0001519,2]
[334704971,1723489844166,-500.0,0.0001519,2]
[334704972,1723489844175,-513.34179872,0.0001519,2]
[334704973,1723489844184,-500.0,0.0001519,2]
[334704974,1723489844195,-500.0,0.0001519,2]
[334704975,1723489844204,-500.0,0.0001519,2]
[334704976,1723489844213,-500.0,0.0001519,2]
[334704977,1723489844222,-151.0,0.0001519,2]
[334704978,1723489844231,-151.0,0.0001519,2]
[334704979,1723489844241,-151.0,0.0001519,2]
[334704980,1723489844250,-151.0,0.0001519,2]
[334704982,1723489844261,-151.72358,0.0001519,2]
[334704983,1723489844272,-151.0,0.0001519,2]
[334704984,1723489844283,-200.981752,0.0001519,2]
[334704985,1723489844294,-200.981752,0.0001519,2]
[334704986,1723489844305,-151.0,0.0001519,2]
[334704987,1723489844318,-466.796361,0.0001519,2]
[334704988,1723489844329,-466.796361,0.0001519,2]
[334704989,1723489844339,-151.0,0.0001519,2]
[334704990,1723489844350,-151.0,0.0001519,2]
[334704991,1723489844360,-395.410092,0.0001519,2]
[334704992,1723489844370,-395.410092,0.0001519,2]
[334704993,1723489844380,-579.27,0.0001519,2]
[334704994,1723489844392,-62486.9014478,0.0001519,2]
[334704995,1723489844403,-151.0,0.0001519,2]
[334704996,1723489844412,-308.528972,0.0001519,2]
[334704997,1723489844421,-308.528972,0.0001519,2]
[334704998,1723489844431,-151.0,0.0001519,2]
[334704999,1723489844442,-151.0,0.0001519,2]
[334705000,1723489844452,-151.0,0.0001519,2]
[334705001,1723489844463,-151.0,0.0001519,2]
[334705002,1723489844472,-259.770796,0.0001519,2]
[334705003,1723489844482,-259.770796,0.0001519,2]
[334705004,1723489844492,-151.0,0.0001519,2]
[334705005,1723489844502,-579.27,0.00015199,2]
[334705006,1723489844512,-150.112233,0.000152,2]
[334705007,1723489844521,-150.112233,0.000152,2]
[334705008,1723489844532,-151.0,0.00015285,2]
[334705009,1723489844543,-151.0,0.00015285,2]
[334705010,1723489844553,-151.0,0.00015285,2]
[334705011,1723489844563,-200.981752,0.00015285,2]
[334705012,1723489844573,-200.981752,0.00015285,2]
[334705013,1723489844583,-151.0,0.00015285,2]
[334705014,1723489844592,-466.796361,0.00015285,2]
[334705015,1723489844602,-466.796361,0.00015285,2]
[334705016,1723489844612,-151.0,0.00015285,2]
[334705017,1723489844622,-395.410092,0.00015285,2]
[334705018,1723489844632,-395.410092,0.00015285,2]
[334705019,1723489844641,-151.0,0.00015285,2]
[334705020,1723489844651,-308.528972,0.00015285,2]
[334705021,1723489844661,-308.528972,0.00015285,2]
[334705022,1723489844670,-151.0,0.00015285,2]
[334705023,1723489844680,-151.0,0.00015285,2]
[334705024,1723489844690,-151.0,0.00015285,2]
[334705025,1723489844700,-259.770796,0.00015285,2]
[334705026,1723489844711,-259.770796,0.00015285,2]
[334705027,1723489844721,-579.27,0.00015294,2]
[334705028,1723489844730,-579.27,0.00015294,2]
[334705029,1723489844740,-243.21,0.00015295,2]
[334705030,1723489844758,-150.112233,0.000153,2]
[334705031,1723489844767,-579.27,0.00015359,2]
[334705032,1723489844777,-395.410092,0.00015368,2]
[334705033,1723489844786,-395.410092,0.00015368,2]
[334705034,1723489844797,-151.0,0.00015368,2]
[334705035,1723489844807,-308.528972,0.00015368,2]
[334705036,1723489844816,-308.528972,0.00015368,2]
[334705037,1723489844826,-151.0,0.00015368,2]
[334705038,1723489844835,-151.0,0.00015368,2]
[334705039,1723489844845,-151.0,0.00015368,2]
[334705040,1723489844855,-259.770796,0.00015368,2]
[334705041,1723489844864,-259.770796,0.00015368,2]
[334705042,1723489844874,-579.27,0.00015372,2]
[334705043,1723489844883,-151.0,0.00015373,2]
[334705044,1723489844893,-167.796544,0.00015373,2]
[334705045,1723489844903,-151.0,0.00015373,2]
[334705046,1723489844913,-200.981752,0.00015373,2]
[334705047,1723489844923,-200.981752,0.00015373,2]
[334705048,1723489844933,-281.520702,0.00015373,2]
[334705049,1723489844943,-466.796361,0.00015373,2]
[334705050,1723489844953,-466.796361,0.00015373,2]
[334705051,1723489844966,-151.0,0.00015373,2]
[334705052,1723489844976,-579.27,0.00015375,2]
[334705053,1723489844990,-1311.12,0.00015379,2]
[334705054,1723489845002,-810.93,0.00015379,2]
[334705055,1723489845015,-500.0,0.00015381,2]
[334705056,1723489845027,-500.0,0.00015381,2]
[334705057,1723489845037,-214.87882269,0.00015381,2]
[334705058,1723489845047,-7924.3,0.00015381,2]
[334705059,1723489845058,-1417.21,0.00015381,2]
[334705060,1723489845071,-859.2,0.00015381,2]
[334705061,1723489845081,-871.33,0.00015381,2]
[334705062,1723489845090,-579.27,0.00015382,2]
[334705063,1723489845099,-579.27,0.00015382,2]
[334705064,1723489845109,-500.0,0.00015383,2]
[334705065,1723489845119,-500.0,0.00015383,2]
[334705066,1723489845128,-500.0,0.00015383,2]
[334705067,1723489845138,-500.0,0.00015383,2]
[334705068,1723489845148,-500.0,0.00015383,2]
[334705069,1723489845158,-631.54,0.00015383,2]
[334705070,1723489845168,-630.83,0.00015383,2]
[334705071,1723489845178,-500.0,0.00015383,2]
[334705072,1723489845187,-373.28333983,0.00015383,2]
[334705073,1723489845198,-591.66,0.00015383,2]
[334705074,1723489845207,-500.0,0.00015383,2]
[334705075,1723489845217,-500.0,0.00015383,2]
[334705076,1723489845226,-500.0,0.00015383,2]
[334705077,1723489845236,-500.0,0.00015383,2]
[334705078,1723489845246,-500.0,0.00015383,2]
[334705079,1723489845256,-500.0,0.00015383,2]
[334705080,1723489845266,-1331.73,0.00015383,2]
[334705081,1723489845276,-1020.82,0.00015383,2]
[334705082,1723489845286,-500.0,0.00015383,2]
[334705083,1723489845295,-500.0,0.00015383,2]
[334705084,1723489845305,-500.0,0.00015383,2]
[334705085,1723489845314,-500.0,0.00015383,2]
[334705086,1723489845324,-546.63,0.00015383,2]
[334705087,1723489845333,-500.0,0.00015383,2]
[334705088,1723489845342,-500.0,0.00015383,2]
[334705089,1723489845352,-733.53,0.00015383,2]
[334705090,1723489845362,-544.37,0.00015383,2]
[334705091,1723489845372,-500.0,0.00015383,2]
[334705092,1723489845381,-500.0,0.00015383,2]
[334705093,1723489845391,-1108.41,0.00015383,2]
[334705094,1723489845400,-500.0,0.00015383,2]
[334705095,1723489845410,-1023.67,0.00015383,2]
[334705096,1723489845419,-538.2,0.00015383,2]
[334705097,1723489845429,-500.0,0.00015383,2]
[334705098,1723489845439,-951.17,0.00015383,2]
[334705099,1723489845450,-500.0,0.00015383,2]
[334705100,1723489845460,-500.0,0.00015383,2]
[334705101,1723489845470,-602.75,0.00015383,2]
[334705102,1723489845479,-500.0,0.00015383,2]
[334705103,1723489845489,-500.0,0.00015383,2]
[334705104,1723489845499,-1297.74,0.00015383,2]
[334705105,1723489845508,-500.0,0.00015383,2]
[334705106,1723489845518,-1946.62,0.00015383,2]
[334705107,1723489845527,-163.37809937,0.00015383,2]
[334705108,1723489845537,-500.0,0.00015383,2]
[334705109,1723489845547,-1155.08,0.00015383,2]
[334705110,1723489845556,-567.51,0.00015383,2]
[334705111,1723489845566,-500.0,0.0001539,2]
[334705112,1723489845575,-4082.29,0.0001539,2]
[334705113,1723489845585,-200.981752,0.0001539,2]
[334705114,1723489845594,-200.981752,0.0001539,2]
[334705115,1723489845604,-1282.59,0.0001539,2]
[334705116,1723489845613,-1144.15,0.0001539,2]
[334705117,1723489845623,-466.796361,0.0001539,2]
[334705118,1723489845632,-466.796361,0.0001539,2]
[334705119,1723489845642,-151.0,0.0001539,2]
[334705120,1723489845652,-4936.95,0.0001539,2]
[334705121,1723489845662,-500.0,0.0001539,2]
[334705122,1723489845671,-1730.61,0.0001539,2]
[334705123,1723489845681,-500.0,0.0001539,2]
[334705124,1723489845691,-395.410092,0.0001539,2]
[334705125,1723489845701,-395.410092,0.0001539,2]
[334705126,1723489845710,-500.0,0.0001539,2]
[334705127,1723489845719,-1661.26,0.0001539,2]
[334705128,1723489845729,-1729.03,0.0001539,2]
[334705129,1723489845739,-151.0,0.0001539,2]
[334705130,1723489845750,-1043.18,0.0001539,2]
[334705131,1723489845761,-8052.65,0.0001539,2]
[334705132,1723489845770,-308.528972,0.0001539,2]
[334705133,1723489845780,-308.528972,0.0001539,2]
[334705134,1723489845791,-1592.67,0.0001539,2]
[334705135,1723489845801,-2579.05,0.0001539,2]
[334705136,1723489845810,-151.0,0.0001539,2]
[334705137,1723489845819,-151.0,0.0001539,2]
[334705138,1723489845830,-1451.6,0.0001539,2]
[334705139,1723489845839,-151.0,0.0001539,2]
[334705140,1723489845849,-1532.03,0.0001539,2]
[334705141,1723489845858,-810.63,0.0001539,2]
[334705142,1723489845867,-259.770796,0.0001539,2]
[334705143,1723489845877,-259.770796,0.0001539,2]
[334705144,1723489845886,-500.0,0.0001539,2]
[334705145,1723489845896,-638.26,0.0001539,2]
[334705146,1723489845905,-500.0,0.00015391,2]
[334705147,1723489845914,-588.95,0.00015391,2]
[334705148,1723489845923,-500.0,0.00015391,2]
[334705149,1723489845932,-500.0,0.00015391,2]
[334705150,1723489845944,-584.54,0.00015391,2]
[334705151,1723489845953,-710.46,0.00015391,2]
[334705152,1723489845963,-538.67,0.00015391,2]
[334705153,1723489845973,-500.0,0.00015391,2]
[334705154,1723489845982,-500.0,0.00015391,2]
[334705155,1723489845992,-500.0,0.00015391,2]
[334705156,1723489846001,-905.75,0.00015391,2]
[334705157,1723489846011,-500.0,0.00015391,2]
[334705158,1723489846022,-500.0,0.00015391,2]
[334705159,1723489846170,-500.0,0.00015391,2]
[334705160,1723489846180,-500.0,0.00015391,2]
[334705161,1723489846191,-500.0,0.00015391,2]
[334705162,1723489846202,-513.96709265,0.00015391,2]
[334705163,1723489846211,-815.76,0.00015391,2]
[334705164,1723489846222,-512.05556544,0.00015391,2]
[334705165,1723489846232,-649.34,0.00015391,2]
[334705166,1723489846244,-500.0,0.00015391,2]
[334705167,1723489846256,-207.41790081,0.00015391,2]
[334705168,1723489846266,-500.0,0.00015391,2]
[334705169,1723489846276,-151.0,0.00015391,2]
[334705170,1723489846286,-500.0,0.00015391,2]
[334705171,1723489846295,-500.0,0.00015391,2]
[334705172,1723489846304,-500.0,0.00015391,2]
[334705173,1723489846314,-1192.61,0.00015391,2]
[334705174,1723489846323,-832.06,0.00015391,2]
[334705175,1723489846332,-500.0,0.00015391,2]
[334705176,1723489846342,-500.0,0.00015391,2]
[334705177,1723489846352,-4530.68,0.00015391,2]
[334705178,1723489846361,-509.26425576,0.00015391,2]
[334705179,1723489846373,-1256.33,0.00015391,2]
[334705180,1723489846385,-514.72593159,0.00015391,2]
[334705181,1723489846395,-500.0,0.00015391,2]
[334705182,1723489846406,-500.0,0.00015391,2]
[334705185,1723489846416,-500.0,0.00015391,2]
[334705188,1723489846427,-737.86,0.00015391,2]
[334705190,1723489846437,-500.0,0.00015391,2]
[334705193,1723489846449,-500.0,0.00015391,2]
[334705196,1723489846459,-597.27327732,0.00015391,2]
[334705199,1723489846469,-911.95,0.00015391,2]
[334705202,1723489846478,-500.0,0.00015391,2]
[334705205,1723489846487,-500.0,0.00015391,2]
[334705208,1723489846496,-579.27,0.00015391,2]
[334705211,1723489846506,-500.0,0.00015391,2]
[334705213,1723489846516,-500.0,0.00015391,2]
[334705215,1723489846526,-2754.04,0.00015391,2]
[334705217,1723489846536,-787.11,0.00015391,2]
[334705218,1723489846546,-4002.97,0.00015391,2]
[334705219,1723489846557,-624.96,0.00015391,2]
[334705220,1723489846568,-500.0,0.00015391,2]
[334705221,1723489846578,-1206.19,0.00015391,2]
[334705222,1723489846589,-500.0,0.00015391,2]
[334705223,1723489846601,-500.0,0.00015391,2]
[334705224,1723489846611,-500.0,0.00015391,2]
[334705225,1723489846621,-500.0,0.00015391,2]
[334705226,1723489846631,-553.68,0.00015391,2]
[334705227,1723489846642,-835.57,0.00015391,2]
[334705229,1723489846656,-711.02,0.00015391,2]
[334705231,1723489846666,-558.71,0.00015391,2]
[334705233,1723489846676,-500.0,0.00015391,2]
[334705235,1723489846686,-500.0,0.00015391,2]
[334705237,1723489846698,-992.91,0.00015391,2]
[334705239,1723489846707,-151.0,0.00015391,2]
[334705241,1723489846717,-2147.79,0.00015391,2]
[334705243,1723489846727,-3273.94,0.00015391,2]
[334705245,1723489846740,-151.0,0.00015391,2]
[334705247,1723489846752,-500.0,0.00015391,2]
[334705249,1723489846763,-500.0,0.00015392,2]
[334705251,1723489846772,-500.0,0.00015392,2]
[334705253,1723489846782,-500.0,0.00015392,2]
[334705255,1723489846791,-500.0,0.00015392,2]
[334705257,1723489846802,-500.0,0.00015392,2]
[334705259,1723489846811,-500.0,0.00015392,2]
[334705262,1723489846821,-550.78,0.00015392,2]
[334705264,1723489846832,-500.0,0.00015392,2]
[334705266,1723489846842,-946.65,0.00015392,2]
[334705268,1723489846851,-151.0,0.00015392,2]
[334705270,1723489846861,-500.0,0.00015392,2]
[334705271,1723489846871,-500.0,0.00015392,2]
[334705273,1723489846880,-500.0,0.00015392,2]
[334705275,1723489846890,-1017.56,0.00015392,2]
[334705277,1723489846900,-500.0,0.00015392,2]
[334705279,1723489846910,-500.0,0.00015392,2]
[334705281,1723489846919,-500.0,0.00015392,2]
[334705283,1723489846929,-1430.85,0.00015392,2]
[334705285,1723489846938,-500.0,0.00015392,2]
[334705286,1723489846950,-500.0,0.00015392,2]
[334705287,1723489846960,-500.0,0.00015392,2]
[334705289,1723489846969,-200.981752,0.00015392,2]
[334705291,1723489846978,-500.0,0.00015392,2]
[334705292,1723489846988,-200.981752,0.00015392,2]
[334705294,1723489846997,-608.28,0.00015392,2]
[334705296,1723489847006,-500.0,0.00015392,2]
[334705298,1723489847016,-500.0,0.00015392,2]
[334705301,1723489847026,-500.0,0.00015392,2]
[334705303,1723489847035,-500.0,0.00015392,2]
[334705305,1723489847045,-466.796361,0.00015392,2]
[334705307,1723489847054,-466.796361,0.00015392,2]
[334705309,1723489847064,-151.0,0.00015392,2]
[334705311,1723489847074,-930.04,0.00015392,2]
[334705313,1723489847083,-1445.8,0.00015392,2]
[334705314,1723489847092,-1172.27,0.00015392,2]
[334705315,1723489847101,-995.89,0.00015392,2]
[334705316,1723489847111,-500.0,0.00015392,2]
[334705317,1723489847121,-552.53,0.00015392,2]
[334705318,1723489847131,-6310.06,0.00015392,2]
[334705319,1723489847140,-395.410092,0.00015392,2]
[334705320,1723489847149,-395.410092,0.00015392,2]
[334705321,1723489847159,-602.8,0.00015392,2]
[334705322,1723489847169,-579.27,0.00015392,2]
[334705323,1723489847179,-1204.03,0.00015392,2]
[334705324,1723489847188,-500.0,0.00015392,2]
[334705325,1723489847199,-500.0,0.00015392,2]
[334705326,1723489847208,-500.0,0.00015392,2]
[334705327,1723489847217,-719.89,0.00015392,2]
[334705328,1723489847228,-151.0,0.00015392,2]
[334705329,1723489847237,-500.0,0.00015392,2]
[334705330,1723489847246,-500.0,0.00015392,2]
[334705331,1723489847256,-308.528972,0.00015392,2]
[334705332,1723489847265,-500.0,0.00015392,2]
[334705333,1723489847275,-308.528972,0.00015392,2]
[334705334,1723489847284,-532.3408573,0.00015392,2]
[334705335,1723489847293,-500.0,0.00015392,2]
[334705336,1723489847303,-803.84,0.00015392,2]
[334705337,1723489847312,-500.0,0.00015392,2]
[334705338,1723489847321,-151.0,0.00015392,2]
[334705339,1723489847330,-151.0,0.00015392,2]
[334705340,1723489847339,-242.957603,0.00015392,2]
[334705341,1723489847348,-500.0,0.00015392,2]
[334705342,1723489847359,-500.0,0.00015392,2]
[334705343,1723489847369,-741.84,0.00015392,2]
[334705344,1723489847379,-500.0,0.00015392,2]
[334705345,1723489847388,-151.0,0.00015392,2]
[334705346,1723489847397,-998.83,0.00015392,2]
[334705347,1723489847406,-500.0,0.00015392,2]
[334705348,1723489847415,-500.0,0.00015392,2]
[334705349,1723489847425,-259.770796,0.00015392,2]
[334705350,1723489847434,-259.770796,0.00015392,2]
[334705351,1723489847444,-500.0,0.00015392,2]
[334705352,1723489847453,-151.0,0.00015393,2]
[334705353,1723489847462,-151.0,0.00015393,2]
[334705354,1723489847472,-151.0,0.00015395,2]
[334705355,1723489847481,-151.0,0.00015395,2]
[334705356,1723489847491,-150.112233,0.000154,2]
[334705357,1723489847501,-606.58778357,0.00015408,2]
[334705358,1723489847510,-151.0,0.00015463,2]
[334705359,1723489847519,-579.27,0.00015463,2]
[334705360,1723489847529,-500.0,0.00015464,2]
[334705361,1723489847538,-500.0,0.00015464,2]
[334705362,1723489847548,-771.24,0.00015464,2]
[334705363,1723489847556,-500.0,0.00015464,2]
[334705364,1723489847566,-500.0,0.00015464,2]
[334705365,1723489847575,-500.0,0.00015464,2]
[334705366,1723489847585,-500.0,0.00015464,2]
[334705367,1723489847595,-529.36290054,0.00015464,2]
[334705368,1723489847604,-574.8,0.00015464,2]
[334705369,1723489847614,-500.0,0.00015464,2]
[334705370,1723489847624,-500.0,0.00015464,2]
[334705371,1723489847633,-500.0,0.00015464,2]
[334705372,1723489847643,-500.0,0.00015464,2]
[334705373,1723489847652,-500.0,0.00015464,2]
[334705374,1723489847663,-500.0,0.00015464,2]
[334705375,1723489847672,-500.0,0.00015464,2]
[334705376,1723489847683,-500.0,0.00015464,2]
[334705377,1723489847692,-500.0,0.00015464,2]
[334705378,1723489847702,-500.0,0.00015464,2]
[334705379,1723489847714,-500.0,0.00015464,2]
[334705380,1723489847724,-500.0,0.00015464,2]
[334705381,1723489847734,-500.0,0.00015464,2]
[334705382,1723489847743,-500.0,0.00015464,2]
[334705383,1723489847758,-592.65,0.00015464,2]
[334705384,1723489847767,-500.0,0.00015464,2]
[334705385,1723489847777,-500.0,0.00015464,2]
[334705386,1723489847786,-500.0,0.00015464,2]
[334705387,1723489847796,-500.0,0.00015464,2]
[334705388,1723489847806,-2091.52,0.00015464,2]
[334705389,1723489847815,-500.0,0.00015464,2]
[334705390,1723489847825,-543.08,0.00015464,2]
[334705391,1723489847835,-500.0,0.00015464,2]
[334705392,1723489847844,-500.0,0.00015464,2]
[334705393,1723489847853,-500.0,0.00015464,2]
[334705394,1723489847862,-500.0,0.00015464,2]
[334705395,1723489847872,-500.0,0.00015464,2]
[334705396,1723489847882,-579.27,0.00015472,2]
[334705397,1723489847891,-151.0,0.00015473,2]
[334705398,1723489847901,-395.410092,0.00015473,2]
[334705399,1723489847911,-395.410092,0.00015473,2]
[334705400,1723489847920,-1000.0,0.00015476,2]
[334705401,1723489847931,-151.0,0.00015484,2]
[334705402,1723489847941,-1000.0,0.00015489,2]
[334705403,1723489847952,-300.0,0.00015499,2]
[334705404,1723489847961,-153.0,0.000155,2]
[334705405,1723489847972,-207.3044688,0.000155,2]
[334705406,1723489847982,-153.6145265,0.000155,2]
[334705407,1723489847993,-589.3669008,0.000155,2]
[334705408,1723489848004,-153.0,0.000155,2]
[334705409,1723489848014,-153.0,0.000155,2]
[334705410,1723489848024,-306.0,0.000155,2]
[334705411,1723489848033,-153.0,0.000155,2]
[334705412,1723489848043,-294.7248868,0.000155,2]
[334705413,1723489848054,-513.61556766,0.00015565,2]
[334705414,1723489848064,-200.981752,0.00015565,2]
[334705415,1723489848074,-200.981752,0.00015565,2]
[334705416,1723489848084,-466.796361,0.00015565,2]
[334705417,1723489848094,-466.796361,0.00015565,2]
[334705418,1723489848103,-272.904664,0.00015565,2]
[334705419,1723489848112,-150.112233,0.000156,2]
[334705420,1723489848122,-5247.06235699,0.00015605,2]
[334705421,1723489848131,-1000.0,0.0001564,2]
[334705422,1723489848140,-1311.12,0.00015653,2]
[334705423,1723489848151,-810.93,0.00015653,2]
[334705424,1723489848160,-500.0,0.00015655,2]
[334705425,1723489848170,-500.0,0.00015655,2]
[334705426,1723489848180,-7924.3,0.00015655,2]
[334705427,1723489848189,-1417.21,0.00015655,2]
[334705428,1723489848202,-859.2,0.00015655,2]
[334705429,1723489848213,-871.33,0.00015655,2]
[334705430,1723489848223,-500.0,0.00015657,2]
[334705431,1723489848233,-500.0,0.00015657,2]
[334705432,1723489848243,-500.0,0.00015657,2]
[334705433,1723489848253,-500.0,0.00015657,2]
[334705434,1723489848263,-631.54,0.00015657,2]
[334705435,1723489848272,-630.83,0.00015657,2]
[334705436,1723489848282,-500.0,0.00015657,2]
[334705437,1723489848292,-591.66,0.00015657,2]
[334705438,1723489848301,-500.0,0.00015657,2]
[334705439,1723489848311,-500.0,0.00015657,2]
[334705440,1723489848321,-500.0,0.00015657,2]
[334705441,1723489848331,-500.0,0.00015657,2]
[334705442,1723489848340,-500.0,0.00015657,2]
[334705443,1723489848350,-500.0,0.00015657,2]
[334705444,1723489848360,-1331.73,0.00015657,2]
[334705445,1723489848370,-1020.82,0.00015657,2]
[334705446,1723489848379,-500.0,0.00015657,2]
[334705447,1723489848389,-500.0,0.00015657,2]
[334705448,1723489848399,-500.0,0.00015657,2]
[334705449,1723489848409,-500.0,0.00015657,2]
[334705450,1723489848418,-546.63,0.00015657,2]
[334705451,1723489848428,-500.0,0.00015657,2]
[334705452,1723489848438,-733.53,0.00015657,2]
[334705453,1723489848449,-544.37,0.00015657,2]
[334705454,1723489848459,-500.0,0.00015657,2]
[334705455,1723489848469,-500.0,0.00015657,2]
[334705456,1723489848479,-1108.41,0.00015657,2]
[334705457,1723489848489,-1023.67,0.00015657,2]
[334705458,1723489848498,-538.2,0.00015657,2]
[334705459,1723489848507,-151.0,0.00015657,2]
[334705460,1723489848517,-951.17,0.00015657,2]
[334705461,1723489848526,-500.0,0.00015657,2]
[334705462,1723489848536,-500.0,0.00015657,2]
[334705463,1723489848545,-602.75,0.00015657,2]
[334705464,1723489848554,-500.0,0.00015657,2]
[334705465,1723489848563,-500.0,0.00015657,2]
[334705466,1723489848573,-1297.74,0.00015657,2]
[334705467,1723489848583,-500.0,0.00015657,2]
[334705468,1723489848592,-1946.62,0.00015657,2]
[334705469,1723489848602,-500.0,0.00015657,2]
[334705470,1723489848611,-1155.08,0.00015657,2]
[334705471,1723489848621,-151.0,0.00015657,2]
[334705472,1723489848630,-567.51,0.00015657,2]
[334705473,1723489848640,-308.528972,0.00015657,2]
[334705474,1723489848649,-308.528972,0.00015657,2]
[334705475,1723489848660,-151.0,0.00015657,2]
[334705476,1723489848670,-151.0,0.00015657,2]
[334705477,1723489848679,-259.770796,0.00015657,2]
[334705478,1723489848688,-259.770796,0.00015657,2]
[334705479,1723489848699,-500.0,0.00015664,2]
[334705480,1723489848708,-4082.29,0.00015664,2]
[334705481,1723489848718,-1282.59,0.00015664,2]
[334705482,1723489848728,-1144.15,0.00015664,2]
[334705483,1723489848738,-4936.95,0.00015664,2]
[334705484,1723489848748,-500.0,0.00015664,2]
[334705485,1723489848764,-1730.61,0.00015664,2]
[334705486,1723489848774,-500.0,0.00015664,2]
[334705487,1723489848783,-1661.26,0.00015664,2]
[334705488,1723489848793,-579.27,0.00015664,2]
[334705489,1723489848802,-579.27,0.00015664,2]
[334705490,1723489848811,-579.27,0.00015664,2]
[334705491,1723489848821,-579.27,0.00015664,2]
[334705492,1723489848831,-579.34142285,0.00015664,2]
[334705493,1723489848840,-1729.03,0.00015664,2]
[334705494,1723489848850,-1043.18,0.00015664,2]
[334705495,1723489848859,-8052.65,0.00015664,2]
[334705496,1723489848869,-1592.67,0.00015664,2]
[334705497,1723489848878,-2579.05,0.00015664,2]
[334705498,1723489848887,-1451.6,0.00015664,2]
[334705499,1723489848896,-1532.03,0.00015664,2]
[334705500,1723489848906,-151.0,0.00015664,2]
[334705501,1723489848915,-810.63,0.00015664,2]
[334705502,1723489848926,-500.0,0.00015664,2]
[334705503,1723489848937,-638.26,0.00015664,2]
[334705504,1723489848947,-151.0,0.00015664,2]
[334705505,1723489848956,-500.0,0.00015665,2]
[334705506,1723489848965,-588.95,0.00015665,2]
[334705507,1723489848973,-212.02018946,0.00015665,2]
[334705508,1723489848983,-509.97154592,0.00015665,2]
[334705509,1723489848992,-584.54,0.00015665,2]
[334705510,1723489849001,-710.46,0.00015665,2]
[334705511,1723489849011,-538.67,0.00015665,2]
[334705512,1723489849020,-500.0,0.00015665,2]
[334705513,1723489849030,-500.0,0.00015665,2]
[334705514,1723489849039,-905.75,0.00015665,2]
[334705515,1723489849050,-500.0,0.00015665,2]
[334705516,1723489849059,-500.0,0.00015665,2]
[334705517,1723489849068,-500.0,0.00015665,2]
[334705518,1723489849078,-500.0,0.00015665,2]
[334705519,1723489849087,-500.0,0.00015665,2]
[334705520,1723489849097,-815.76,0.00015665,2]
[334705521,1723489849106,-649.34,0.00015665,2]
[334705522,1723489849115,-500.0,0.00015665,2]
[334705523,1723489849124,-500.0,0.00015665,2]
[334705524,1723489849135,-500.0,0.00015665,2]